[Event "2nd Turkish League 2017"]
[Site "Konya"]
[Date "2017.07.19"]
[Round "4"]
[White "Ibik, Halit Yavuz"]
[Black "Altunbay, Onder"]
[Result "1/2-1/2"]
[ECO "C10"]
[WhiteElo "2004"]
[BlackElo "1830"]
[Annotator "NA"]
[PlyCount "89"]
[EventType "team-tourn"]
[EventCountry "TUR"]
[SourceTitle "playchess.com"]
[Source "ChessBase"]
[SourceQuality "1"]
[TimeControl "5400+30"]

1. e4 {[%emt 0:00:30]} e6 {[%emt 0:01:00]} 2. d4 {[%emt 0:00:30]} d5 {[%emt 0:00:00]} 3. Nd2 {[%emt 0:01:30]} dxe4 {[%emt 0:01:00]} 4. Nxe4 {[%emt 0:00:30]} Nd7 {[%emt 0:00:30]} 5. Nf3 {[%emt 0:00:30]} Ngf6 {[%emt 0:01:30]} 6. Bg5 {[%emt 0:03:30]} Be7 {[%emt 0:00:30]} 7. Nxf6+ {[%emt 0:00:30]} Nxf6 {[%emt 0:00:30]} 8. c3 {[%emt 0:00:30]} O-O {[%emt 0:01:30]} 9. Bd3 {[%emt 0:00:30]} b6 {[%emt 0:09:30]} 10. O-O {[%emt 0:02:30]} Bb7 {[%emt 0:01:30]} 11. Re1 {[%emt 0:00:30]} h6 {[%emt 0:09:30]} 12. Bh4 {[%emt 0:01:30]} Nh5 {[%emt 0:12:30] C10: French with 3 Nc3: Unusual Black 3rd moves and 3...dxe4} 13. Bxe7 {[%emt 0:06:30]} (13. Ne5 $5 {[%cal Rh4e7]} Bxh4 14. Qxh5 $11) 13... Qxe7 {[%emt 0:00:00]} 14. Be4 {[%emt 0:01:30]} Bxe4 {[%emt 0:01:00]} 15. Rxe4 {[%emt 0:00:00]} Nf6 {[%emt 0:00:30]} 16. Re1 {[%emt 0:01:00]} Rac8 $146 {[%emt 0:08:30]} ({Predecessor:} 16... c5 17. dxc5 Qxc5 {½-½ (17) Panchenko,A (2430)-Ulybin,M (2495) Cheliabinsk 1989}) 17. Qe2 {[%emt 0:07:30]} c5 {[%emt 0:11:30]} 18. Rad1 {[%emt 0:05:30]} Qb7 {[%emt 0:07:30]} 19. c4 {[%emt 0:01:30]} cxd4 {[%emt 0:05:30]} 20. Rxd4 {[%emt 0:06:30]} Rfd8 $11 {[%emt 0:01:30]} 21. Red1 {[%emt 0:04:30]} Rxd4 {[%emt 0:01:30]} 22. Rxd4 {[%emt 0:00:00]} Qc7 {[%emt 0:04:30]} 23. Ne5 {[%emt 0:23:00]} Qc5 {[%emt 0:03:19]} 24. Rd1 {[%emt 0:06:30]} Qc7 {[%emt 0:03:07]} 25. Rd4 {[%emt 0:11:41]} Qc5 {[%emt 0:02:22]} 26. Rd1 {[%emt 0:00:34]} Qc7 {[%emt 0:01:22]} 27. f3 {[%emt 0:02:22]} Qc5+ {[%emt 0:00:48]} 28. Kf1 {[%emt 0:00:55]} Qc7 {[%emt 0:04:45]} 29. b3 {[%emt 0:00:46]} Qc5 {[%emt 0:01:00]} 30. Nd7 {[%emt 0:02:25]} Qf5 {[%emt 0:02:58]} 31. Nxf6+ {[%emt 0:02:35]} Qxf6 {[%emt 0:01:11]} 32. Qd2 {[%emt 0:00:54]} Qe7 {[%emt 0:01:41]} 33. Qd7 {[%emt 0:00:24]} Rc7 {[%emt 0:00:27]} 34. Qxe7 {[%emt 0:01:04]} Rxe7 {[%emt 0:00:30]} 35. Rd8+ {[%emt 0:00:30]} Kh7 {[%emt 0:00:00]} 36. Ke2 {[%emt 0:00:00]} e5 {[%emt 0:00:16]} 37. Rc8 {[%emt 0:01:30]} Kg6 {[%emt 0:00:22]} 38. c5 {[%emt 0:00:57]} bxc5 {[%emt 0:00:30]} 39. Rxc5 {[%emt 0:00:30]} Kf5 {[%emt 0:00:00]} 40. b4 {[%emt 0:00:39]} Ke6 {[%emt 0:01:11]} 41. Ke3 {[%emt 0:03:35]} Rd7 {[%emt 0:00:47]} 42. b5 {[%emt 0:01:35]} Kd6 {[%emt 0:00:57]} 43. Rc6+ {[%emt 0:00:30]} Kd5 {[%emt 0:00:00]} 44. a4 {[%emt 0:00:00]} f5 {[%emt 0:01:10]} 45. Kd3 {[%emt 0:00:46]} 1/2-1/2

[Event "2nd Turkish League 2017"]
[Site "Konya"]
[Date "2017.07.19"]
[Round "4"]
[White "Cannesar, Rad"]
[Black "Aytekin, Murat Eren"]
[Result "1/2-1/2"]
[ECO "B43"]
[WhiteElo "1979"]
[BlackElo "2201"]
[Annotator "NA"]
[PlyCount "72"]
[EventType "team-tourn"]
[EventCountry "TUR"]
[SourceTitle "playchess.com"]
[Source "ChessBase"]
[SourceQuality "1"]
[TimeControl "5400+30"]

1. e4 {[%emt 0:00:30]} c5 {[%emt 0:01:00]} 2. Nf3 {[%emt 0:00:00]} e6 {[%emt 0:00:00]} 3. d4 {[%emt 0:00:00]} cxd4 {[%emt 0:00:00]} 4. Nxd4 {[%emt 0:00:30]} a6 {[%emt 0:00:30]} 5. Nc3 {[%emt 0:00:30]} b5 {[%emt 0:00:30]} 6. Bd3 {[%emt 0:00:00]} Qb6 {[%emt 0:00:30]} 7. Nf3 {[%emt 0:00:00]} Qc7 {[%emt 0:00:30]} 8. O-O {[%emt 0:00:30]} Bb7 {[%emt 0:00:30] B43: Sicilian: Kan Variation: 5 Nc3} 9. Re1 {[%emt 0:00:00]} Nc6 {[%emt 0:02:30]} (9... Nf6 10. e5 Nd5 11. Ne4 Nc6 12. Ng3 g6 13. c3 Bg7 14. Qe2 O-O 15. a4 b4 16. c4 {0-1 (57) Movsesian,S (2673)-Andreikin,D (2737) Tallinn 2016}) 10. a4 $146 {[%emt 0:04:00]} ({Predecessor:} 10. Bg5 f6 11. Bh4 Nh6 12. Bg3 Ne5 13. Kh1 Nhf7 14. Nd4 h5 15. h3 h4 16. Bf4 Nxd3 17. Bxc7 Nxf2+ {0-1 (33) Kosteniuk,A (2549)-Kurmann,O (2447) Flims 2016}) 10... b4 {[%emt 0:01:30]} 11. Nb1 {[%emt 0:00:30]} Nf6 {[%emt 0:01:30]} 12. e5 {[%emt 0:01:30]} Ng4 {[%emt 0:02:30]} 13. Bf4 {[%emt 0:01:30]} Bc5 {[%emt 0:02:30]} 14. Bg3 {[%emt 0:01:30]} Qb6 {[%emt 0:16:30]} (14... h5 $1 $15 15. Nbd2 h4 16. Nxh4 Nxf2 17. Bxf2 Bxf2+ 18. Kxf2 Rxh4) 15. Qe2 {[%emt 0:02:30]} f5 {[%emt 0:02:30]} ({Better is} 15... h5 $1 $11) 16. h3 {[%emt 0:11:30]} ({Better is} 16. exf6 $1 $14 Nxf6 17. Nbd2) 16... Nh6 {[%emt 0:01:30]} 17. Nbd2 {[%emt 0:05:30]} Na5 {[%emt 0:02:30]} 18. Bf4 {[%emt 0:05:30]} Nf7 {[%emt 0:06:30]} 19. Be3 {[%emt 0:05:30]} O-O {[%emt 0:01:30]} 20. Bxc5 {[%emt 0:09:30]} Qxc5 {[%emt 0:00:30]} 21. Nb3 {[%emt 0:00:00]} Nxb3 {[%emt 0:01:30]} 22. cxb3 {[%emt 0:00:00]} Bxf3 {[%emt 0:01:30]} 23. gxf3 {[%emt 0:00:30]} Qe7 $15 {[%emt 0:14:30]} 24. Qf1 {[%emt 0:23:30]} Qg5+ {[%emt 0:02:30]} 25. Qg2 {[%emt 0:04:30]} Qd2 {[%emt 0:00:30]} 26. Bc4 {[%emt 0:03:30]} Qxb2 {[%emt 0:06:30]} 27. Rab1 {[%emt 0:03:09]} Qd4 {[%emt 0:00:30]} 28. Rbd1 {[%emt 0:00:09]} Qa7 {[%emt 0:02:30]} 29. f4 {[%emt 0:00:39]} Kh8 {[%emt 0:01:30]} 30. h4 {[%emt 0:02:36]} Rg8 {[%emt 0:04:30]} 31. Rd3 {[%emt 0:02:05]} Rad8 {[%emt 0:03:30]} 32. Red1 {[%emt 0:00:33]} g6 {[%emt 0:02:41]} 33. Kh2 {[%emt 0:02:51]} h6 {[%emt 0:03:49]} 34. Rg3 {[%emt 0:02:48]} Kh7 {[%emt 0:05:22]} 35. Rg1 {[%emt 0:02:53]} Nh8 {[%emt 0:01:56]} 36. h5 {[%emt 0:01:15]} Qd4 {[%emt 0:01:25]} 1/2-1/2

[Event "2nd Turkish League 2017"]
[Site "Konya"]
[Date "2017.07.19"]
[Round "4"]
[White "Kaplan, Bahadir"]
[Black "Eren, Baran"]
[Result "1/2-1/2"]
[ECO "D17"]
[WhiteElo "1952"]
[BlackElo "2143"]
[Annotator "NA"]
[PlyCount "78"]
[EventType "team-tourn"]
[EventCountry "TUR"]
[SourceTitle "playchess.com"]
[Source "ChessBase"]
[SourceQuality "1"]
[TimeControl "5400+30"]

1. d4 {[%emt 0:00:30]} d5 {[%emt 0:01:00]} 2. c4 {[%emt 0:00:30]} c6 {[%emt 0:00:30]} 3. Nf3 {[%emt 0:00:00]} Nf6 {[%emt 0:00:00]} 4. Nc3 {[%emt 0:00:00]} dxc4 {[%emt 0:00:00]} 5. a4 {[%emt 0:00:00]} Bf5 {[%emt 0:00:00]} 6. Ne5 {[%emt 0:00:00]} Nbd7 {[%emt 0:00:00]} 7. Nxc4 {[%emt 0:00:30]} Nb6 {[%emt 0:00:00]} 8. Ne5 {[%emt 0:01:30]} a5 {[%emt 0:02:00]} 9. f3 {[%emt 0:02:30] D17: Slav Defence: 5 a4 Bf5: Lines with 6 Nh4 and 6 Ne5} (9. h4 e6 10. f3 h6 11. e4 Bh7 12. Be3 Nfd7 13. Nd3 Bd6 14. Bf2 O-O 15. Qb3 Qe7 16. g4 Kh8 {0-1 (32) So,W (2812)-Giri,A (2771) Leuven 2017}) 9... Nfd7 {[%emt 0:00:30]} 10. Nxd7 {[%emt 0:04:30]} Nxd7 {[%emt 0:00:30]} 11. e4 {[%emt 0:00:30]} Bg6 {[%emt 0:00:30]} 12. Be3 {[%emt 0:05:30] LiveBook: 107 Games} Qb6 {[%emt 0:02:30]} 13. Qd2 {[%emt 0:00:30]} e5 {[%emt 0:00:00]} 14. Rd1 {[%emt 0:10:30]} Rd8 {[%emt 0:10:00]} 15. dxe5 {[%emt 0:04:30]} Bc5 {[%emt 0:00:30]} 16. Bg5 $146 {[%emt 0:00:00]} ({Predecessor:} 16. Bxc5 Nxc5 17. Qxd8+ Qxd8 18. Rxd8+ Kxd8 {1-0 (59) Schulz,V (2143)-Leutwyler,M (2186) Germany 2014}) 16... f6 {[%emt 0:05:30]} 17. exf6 {[%emt 0:03:00]} gxf6 $15 {[%emt 0:01:30]} 18. Bh6 {[%emt 0:03:30]} Bf7 {[%emt 0:00:30]} 19. e5 {[%emt 0:18:30]} Bb3 {[%emt 0:21:30]} 20. exf6 {[%emt 0:10:30]} Kf7 {[%emt 0:00:30]} 21. Be2 {[%emt 0:14:38]} Nxf6 {[%emt 0:06:30]} 22. Qf4 {[%emt 0:03:50]} Rxd1+ {[%emt 0:09:30]} 23. Nxd1 {[%emt 0:02:22]} Re8 {[%emt 0:01:30]} 24. Nc3 {[%emt 0:10:20]} Be3 {[%emt 0:14:30]} 25. Qh4 {[%emt 0:00:14]} Qb4 {[%emt 0:01:30]} 26. Qxb4 {[%emt 0:01:18]} axb4 {[%emt 0:02:30]} 27. Bxe3 {[%emt 0:00:01]} bxc3 {[%emt 0:00:36]} 28. Kf2 {[%emt 0:00:01]} cxb2 {[%emt 0:00:49]} 29. Rb1 {[%emt 0:00:34]} Nd5 {[%emt 0:01:40]} 30. Bd2 {[%emt 0:00:01]} Bxa4 {[%emt 0:04:30]} 31. Rxb2 {[%emt 0:00:19]} b5 {[%emt 0:01:18]} 32. Bd3 {[%emt 0:00:15]} c5 {[%emt 0:00:43]} 33. Be4 {[%emt 0:02:37]} Nf6 {[%emt 0:00:30]} 34. Bc6 {[%emt 0:00:00]} Rb8 {[%emt 0:00:40]} 35. Be3 {[%emt 0:00:29]} Rb6 {[%emt 0:00:27]} 36. Ba8 {[%emt 0:00:52]} Rb8 {[%emt 0:01:56]} 37. Bc6 {[%emt 0:00:10]} Rb6 {[%emt 0:01:03]} 38. Ba8 {[%emt 0:00:16]} Rb8 {[%emt 0:00:00]} 39. Bc6 {[%emt 0:00:52]} Rb6 {[%emt 0:00:37]} 1/2-1/2

[Event "2nd Turkish League 2017"]
[Site "Konya"]
[Date "2017.07.19"]
[Round "4"]
[White "Demirag, Batuhan"]
[Black "Demirbag, Alihan"]
[Result "1/2-1/2"]
[ECO "A26"]
[WhiteElo "1914"]
[BlackElo "1960"]
[Annotator "NA"]
[PlyCount "117"]
[EventType "team-tourn"]
[EventCountry "TUR"]
[SourceTitle "playchess.com"]
[Source "ChessBase"]
[SourceQuality "1"]
[TimeControl "5400+30"]

1. Nf3 {[%emt 0:00:30] 5} g6 {[%emt 0:01:00] 5} 2. c4 {[%emt 0:00:30] 5} Bg7 {[%emt 0:00:30]} 3. g3 {[%emt 0:00:30]} e5 {[%emt 0:00:00]} 4. Nc3 {[%emt 0:00:30]} Nc6 {[%emt 0:00:00]} 5. Bg2 {[%emt 0:00:30]} d6 {[%emt 0:00:30]} 6. d3 {[%emt 0:00:30]} f5 {[%emt 0:00:30]} 7. O-O {[%emt 0:01:30]} Nf6 {[%emt 0:00:30]} 8. Rb1 {[%emt 0:02:30]} O-O {[%emt 0:02:30]} 9. b4 {[%emt 0:01:30]} h6 {[%emt 0:00:30]} 10. Bd2 {[%emt 0:05:30] A26: English Opening vs King's Indian with ...Nc6 and d3} (10. b5 Ne7 11. c5 Be6 12. Ba3 g5 13. cxd6 cxd6 14. Nd2 Rc8 15. Rc1 Qd7 16. Nc4 Ne8 17. Qa4 e4 18. Qb4 Rf7 19. Na4 d5 20. Nd6 Nxd6 21. Qxd6 Qxd6 22. Bxd6 {½-½ (63) Heberla,B (2541)-Amin,B (2654) Sharjah 2016}) 10... g5 {[%emt 0:01:30] LiveBook: 3 Games} 11. b5 {[%emt 0:05:30]} Ne7 {[%emt 0:00:00]} 12. Ne1 {[%emt 0:01:30]} f4 {[%emt 0:02:00]} 13. Nd5 {[%emt 0:02:30]} (13. e3 $11) 13... Nfxd5 $146 {[%emt 0:06:30]} ({Predecessor:} 13... Nexd5 14. cxd5 Bg4 15. h3 Bd7 16. Nc2 Qe8 {0-1 (30) Radjabov,T-Batsanin,D (2300) Moscow 1997}) 14. cxd5 {[%emt 0:00:30]} fxg3 {[%emt 0:02:30]} 15. hxg3 {[%emt 0:00:30]} Bg4 {[%emt 0:00:30]} 16. Rb4 {[%emt 0:03:30]} Qd7 {[%emt 0:00:30]} 17. Rc4 {[%emt 0:01:30]} Rac8 {[%emt 0:07:30]} 18. Kh2 {[%emt 0:06:30]} Rf7 $16 {[%emt 0:09:30]} (18... Bh5 $11) 19. f3 {[%emt 0:09:30]} Bh5 {[%emt 0:01:30]} 20. Bh3 {[%emt 0:01:30]} g4 {[%emt 0:00:30]} 21. Bxg4 {[%emt 0:01:30]} Bxg4 {[%emt 0:00:30]} 22. Rxg4 {[%emt 0:00:00]} Qxg4 {[%emt 0:01:30]} 23. fxg4 {[%emt 0:00:00]} Rxf1 {[%emt 0:00:30]} 24. e4 {[%emt 0:05:30]} Rcf8 {[%emt 0:06:30]} 25. Be3 {[%emt 0:00:30]} Kh7 {[%emt 0:04:30]} 26. Qe2 {[%emt 0:10:30]} c6 {[%emt 0:09:30]} 27. Kg2 {[%emt 0:06:30]} cxd5 {[%emt 0:16:30]} 28. Bxa7 {[%emt 0:04:30]} R1f7 {[%emt 0:06:30]} 29. exd5 {[%emt 0:01:30]} Kg8 {[%emt 0:00:30]} 30. Bg1 {[%emt 0:07:30]} Ra8 {[%emt 0:01:44]} 31. Qc2 {[%emt 0:03:20]} Nxd5 {[%emt 0:02:53]} 32. a4 {[%emt 0:00:10]} Nf6 {[%emt 0:01:10]} 33. Qa2 {[%emt 0:06:37]} Nxg4 {[%emt 0:07:23]} 34. a5 {[%emt 0:00:38]} e4 {[%emt 0:00:00]} 35. Qc4 {[%emt 0:05:09]} Ne5 {[%emt 0:04:20]} 36. Qxe4 {[%emt 0:02:08]} Rxa5 {[%emt 0:00:04]} 37. d4 {[%emt 0:00:08]} Nc4 {[%emt 0:02:03]} 38. Qe8+ {[%emt 0:01:50]} Bf8 {[%emt 0:00:01]} 39. Qe6 {[%emt 0:00:24]} Nb6 {[%emt 0:01:52]} 40. Nd3 {[%emt 0:02:17]} Rxb5 {[%emt 0:02:04]} 41. Nf4 {[%emt 0:00:07]} Nd7 {[%emt 0:01:49]} 42. Nd5 {[%emt 0:02:10]} Rb2+ {[%emt 0:00:30]} 43. Kh3 {[%emt 0:00:00]} b5 {[%emt 0:00:28]} 44. Be3 {[%emt 0:00:22]} b4 {[%emt 0:00:24]} 45. Bc1 {[%emt 0:00:42]} Rbf2 {[%emt 0:00:33]} 46. Nxb4 {[%emt 0:00:26]} Nf6 {[%emt 0:00:33]} 47. Be3 {[%emt 0:00:35]} Re2 {[%emt 0:00:33]} 48. Nc6 {[%emt 0:00:15] [%clk 0:01.46]} Rc2 {[%emt 0:00:00]} 49. Nd8 {[%emt 0:00:26]} Rcc7 {[%emt 0:00:17]} 50. Nxf7 {[%emt 0:00:30]} Rxf7 {[%emt 0:00:30]} 51. Bf4 {[%emt 0:00:00]} Nh7 {[%emt 0:01:01]} 52. Kg2 {[%emt 0:00:30]} Ng5 {[%emt 0:00:08]} 53. Qd5 {[%emt 0:00:55]} Be7 {[%emt 0:00:41]} 54. Kf1 {[%emt 0:01:25]} Kf8 {[%emt 0:01:16]} 55. Ke2 {[%emt 0:00:16]} Rf6 {[%emt 0:00:00]} 56. Kd3 {[%emt 0:01:03]} Nf7 {[%emt 0:00:32]} 57. Kc4 {[%emt 0:00:24]} Kg7 {[%emt 0:00:50]} 58. Kd3 {[%emt 0:00:25]} Kf8 {[%emt 0:00:06]} 59. Kc4 {[%emt 0:00:21]} 1/2-1/2

[Event "2nd Turkish League 2017"]
[Site "Konya"]
[Date "2017.07.19"]
[Round "4"]
[White "Ozgur, Isa"]
[Black "Gurbuz, Bayram"]
[Result "1-0"]
[ECO "A54"]
[WhiteElo "1904"]
[BlackElo "1794"]
[Annotator "NA"]
[PlyCount "99"]
[EventType "team-tourn"]
[EventCountry "TUR"]
[SourceTitle "playchess.com"]
[Source "ChessBase"]
[SourceQuality "1"]
[TimeControl "5400+30"]

1. Nf3 {[%emt 0:00:30]} d6 {[%emt 0:01:00]} 2. d4 {[%emt 0:00:30]} Nf6 {[%emt 0:00:30]} 3. g3 {[%emt 0:02:30]} Nbd7 {[%emt 0:01:30]} 4. Bg2 {[%emt 0:01:30]} e5 {[%emt 0:00:30]} 5. c4 {[%emt 0:00:00]} Be7 {[%emt 0:00:30]} 6. Nc3 {[%emt 0:00:00]} c6 {[%emt 0:00:00]} 7. O-O {[%emt 0:00:30]} O-O {[%emt 0:00:00]} 8. Qc2 {[%emt 0:00:30]} Qc7 {[%emt 0:00:30]} 9. Rd1 {[%emt 0:01:30]} Re8 {[%emt 0:00:30]} 10. h3 {[%emt 0:02:30]} Bf8 {[%emt 0:03:30]} 11. dxe5 {[%emt 0:03:30]} dxe5 {[%emt 0:01:30]} 12. a3 {[%emt 0:04:30]} a5 {[%emt 0:00:30]} 13. Rb1 {[%emt 0:04:30]} Nb6 {[%emt 0:03:30]} 14. Ng5 {[%emt 0:08:30]} Be6 {[%emt 0:10:30]} 15. Nce4 {[%emt 0:08:30]} Nxe4 $14 {[%emt 0:03:30]} 16. Qxe4 {[%emt 0:09:30]} g6 {[%emt 0:00:30]} 17. Qh4 {[%emt 0:08:30]} f6 {[%emt 0:24:30]} 18. Ne4 {[%emt 0:03:30]} f5 {[%emt 0:00:30]} 19. Nf6+ {[%emt 0:00:30]} Kh8 {[%emt 0:00:30]} 20. Rd7 {[%emt 0:02:30]} Qxd7 {[%emt 0:00:00]} 21. Nxd7 {[%emt 0:00:00]} Nxd7 {[%emt 0:00:00]} 22. Bg5 {[%emt 0:02:00]} e4 {[%emt 0:07:30]} 23. f3 {[%emt 0:09:30]} exf3 {[%emt 0:03:30]} 24. Bxf3 {[%emt 0:00:30]} Bg7 {[%emt 0:00:30]} 25. b3 {[%emt 0:02:30]} Kg8 {[%emt 0:05:30]} 26. Kg2 {[%emt 0:01:30]} Kf7 {[%emt 0:01:30]} 27. Qf4 {[%emt 0:00:30]} Kg8 {[%emt 0:02:30]} 28. Rd1 {[%emt 0:02:30]} Ne5 {[%emt 0:01:30]} 29. h4 {[%emt 0:02:27]} Nf7 {[%emt 0:00:30]} 30. Qc1 {[%emt 0:05:26]} h6 {[%emt 0:02:30]} 31. Bf4 {[%emt 0:00:30]} a4 {[%emt 0:00:00]} 32. b4 {[%emt 0:00:30]} Rad8 {[%emt 0:00:00]} 33. Rxd8 {[%emt 0:01:24]} Rxd8 {[%emt 0:00:30]} 34. b5 {[%emt 0:01:58]} Kh7 {[%emt 0:04:30]} 35. bxc6 {[%emt 0:01:07]} bxc6 {[%emt 0:00:00]} 36. Bxc6 {[%emt 0:00:14]} Rc8 {[%emt 0:00:00]} 37. Bb5 {[%emt 0:00:13]} g5 {[%emt 0:03:30]} 38. hxg5 {[%emt 0:00:53]} hxg5 {[%emt 0:00:30]} 39. Bxg5 {[%emt 0:00:52]} Ne5 {[%emt 0:01:30]} 40. Qf4 {[%emt 0:01:47]} Nxc4 {[%emt 0:01:43]} 41. e4 {[%emt 0:00:44]} Rc5 {[%emt 0:03:51]} 42. exf5 {[%emt 0:00:43]} Bd5+ {[%emt 0:00:06]} 43. Kh3 {[%emt 0:01:13]} Rxb5 {[%emt 0:01:13]} 44. f6 {[%emt 0:00:35]} Be6+ {[%emt 0:01:22]} 45. g4 {[%emt 0:01:19]} Rb3+ {[%emt 0:02:40]} 46. Kh4 {[%emt 0:00:34]} Nd2 {[%emt 0:11:59]} 47. Qxd2 {[%emt 0:00:32]} Bf8 {[%emt 0:00:28]} 48. Qc2+ {[%emt 0:01:28]} Kh8 {[%emt 0:00:01]} 49. Qg6 {[%emt 0:01:11]} Rb2 {[%emt 0:00:35]} 50. Qe8 {[%emt 0:00:34]} 1-0

[Event "2nd Turkish League 2017"]
[Site "Konya"]
[Date "2017.07.19"]
[Round "4"]
[White "Acar, Utku Cengiz"]
[Black "Uyanik, Ulas"]
[Result "1/2-1/2"]
[ECO "A08"]
[WhiteElo "1863"]
[BlackElo "1861"]
[Annotator "NA"]
[PlyCount "109"]
[EventType "team-tourn"]
[EventCountry "TUR"]
[SourceTitle "playchess.com"]
[Source "ChessBase"]
[SourceQuality "1"]
[TimeControl "5400+30"]

1. e4 {[%emt 0:00:30]} c5 {[%emt 0:01:00]} 2. Nf3 {[%emt 0:00:30]} e6 {[%emt 0:00:00]} 3. d3 {[%emt 0:02:30]} Nc6 {[%emt 0:00:00]} 4. Nbd2 {[%emt 0:01:30]} d5 {[%emt 0:00:30]} 5. g3 {[%emt 0:00:30]} g6 {[%emt 0:00:30]} 6. Bg2 {[%emt 0:02:30]} Bg7 {[%emt 0:01:30]} 7. O-O {[%emt 0:01:30]} Nge7 {[%emt 0:00:30]} 8. h4 $11 {[%emt 0:14:30] LiveBook: 8 Games} h5 {[%emt 0:08:30]} 9. Re1 {[%emt 0:10:30]} O-O {[%emt 0:03:30]} 10. e5 {[%emt 0:03:30]} Qc7 {[%emt 0:08:30]} 11. Qe2 {[%emt 0:00:30]} Nd4 {[%emt 0:00:30]} 12. Nxd4 {[%emt 0:14:30]} cxd4 {[%emt 0:00:30]} 13. Nf3 {[%emt 0:00:00]} Nf5 {[%emt 0:00:30]} 14. Bh3 {[%emt 0:02:00]} Qb6 {[%emt 0:02:30]} 15. Bxf5 {[%emt 0:06:30]} exf5 {[%emt 0:00:30]} 16. Qd2 {[%emt 0:00:30]} Re8 {[%emt 0:10:30]} 17. Qf4 {[%emt 0:09:30]} f6 {[%emt 0:00:30]} 18. e6 {[%emt 0:00:30]} Bxe6 {[%emt 0:03:30]} 19. Qxd4 {[%emt 0:00:30]} Qc6 {[%emt 0:04:30]} 20. c3 {[%emt 0:03:30]} Bf7 {[%emt 0:00:30]} 21. Be3 {[%emt 0:03:30]} b6 {[%emt 0:01:30]} 22. Re2 {[%emt 0:02:23]} Bf8 {[%emt 0:00:30]} 23. Rae1 {[%emt 0:04:19]} Bc5 {[%emt 0:02:30]} 24. Qf4 {[%emt 0:00:05]} Bd6 {[%emt 0:04:30]} 25. Nd4 {[%emt 0:00:46]} Qd7 {[%emt 0:01:30]} 26. Qf3 {[%emt 0:01:29]} Bf8 {[%emt 0:00:30]} 27. Bf4 {[%emt 0:01:50]} a5 {[%emt 0:00:30]} 28. Rxe8 {[%emt 0:03:46]} Rxe8 {[%emt 0:00:30]} 29. Rxe8 {[%emt 0:00:30]} Bxe8 {[%emt 0:00:30]} 30. Qe3 {[%emt 0:02:09]} Bf7 {[%emt 0:00:00]} 31. Nb3 {[%emt 0:01:28]} Qb5 {[%emt 0:03:00]} 32. Qd2 {[%emt 0:01:27]} a4 {[%emt 0:01:30]} 33. Nd4 {[%emt 0:00:30]} Qd7 {[%emt 0:00:00]} 34. a3 {[%emt 0:00:00]} Kh7 {[%emt 0:01:00]} 35. Be3 {[%emt 0:00:49]} Bg8 {[%emt 0:08:30]} 36. Nc2 {[%emt 0:02:14]} Qc6 {[%emt 0:02:30]} 37. Bd4 {[%emt 0:00:43]} b5 {[%emt 0:04:30]} 38. Qe3 {[%emt 0:01:02]} Bf7 {[%emt 0:00:30]} 39. Kf1 {[%emt 0:01:13]} Kg7 {[%emt 0:03:30]} 40. Ne1 {[%emt 0:01:07]} Qe6 {[%emt 0:01:30]} 41. Qxe6 {[%emt 0:01:02]} Bxe6 {[%emt 0:00:30]} 42. f4 {[%emt 0:00:00]} Kf7 {[%emt 0:02:30]} 43. Ke2 {[%emt 0:00:43]} Bd6 {[%emt 0:00:00]} 44. Ke3 {[%emt 0:00:50]} Bd7 {[%emt 0:00:00]} 45. Bb6 {[%emt 0:00:55]} Ke7 {[%emt 0:02:39]} 46. Kd4 {[%emt 0:00:26]} Ke6 {[%emt 0:02:39]} 47. Nc2 {[%emt 0:00:51]} Bc6 {[%emt 0:05:21]} 48. Bc5 {[%emt 0:00:57]} Bc7 {[%emt 0:00:55]} 49. Ke3 {[%emt 0:00:14]} Kf7 {[%emt 0:01:33]} 50. Nd4 {[%emt 0:01:18]} Bd7 {[%emt 0:00:02]} 51. Kd2 {[%emt 0:00:00]} Bb8 {[%emt 0:00:53]} 52. Nc2 {[%emt 0:00:38]} Bc6 {[%emt 0:01:31]} 53. Nd4 {[%emt 0:00:21]} Bd7 {[%emt 0:00:00]} 54. b3 {[%emt 0:00:28]} Bc7 {[%emt 0:00:25]} 55. Ke3 {[%emt 0:00:38]} 1/2-1/2

[Event "2nd Turkish League 2017"]
[Site "Konya"]
[Date "2017.07.19"]
[Round "4"]
[White "Caglar, Sadullah B."]
[Black "Yasin, Hur"]
[Result "0-1"]
[ECO "E49"]
[WhiteElo "1835"]
[BlackElo "2022"]
[Annotator "NA"]
[PlyCount "90"]
[EventType "team-tourn"]
[EventCountry "TUR"]
[SourceTitle "playchess.com"]
[Source "ChessBase"]
[SourceQuality "1"]
[TimeControl "5400+30"]

1. d4 {[%emt 0:00:30]} Nf6 {[%emt 0:02:00]} 2. c4 {[%emt 0:00:00]} e6 {[%emt 0:00:00]} 3. Nc3 {[%emt 0:01:00]} Bb4 {[%emt 0:00:00]} 4. a3 {[%emt 0:00:30]} Bxc3+ {[%emt 0:00:00]} 5. bxc3 {[%emt 0:00:00]} d5 {[%emt 0:02:00]} 6. cxd5 {[%emt 0:00:00]} exd5 {[%emt 0:00:00]} ({Of course not} 6... Nxd5 7. Qc2 $16) 7. e3 {[%emt 0:02:30]} O-O {[%emt 0:00:00]} 8. Bd3 {[%emt 0:01:30]} c5 {[%emt 0:00:30]} 9. Ne2 {[%emt 0:05:30]} b6 {[%emt 0:00:30]} 10. O-O {[%emt 0:00:30]} Ba6 {[%emt 0:00:30]} 11. Bxa6 {[%emt 0:01:30]} Nxa6 {[%emt 0:00:00]} 12. Qd3 {[%emt 0:01:30]} c4 {[%emt 0:02:00] LiveBook: 3 Games E49: Nimzo-Indian: Rubinstein: 5 Bd3 d5 6 a3 Bxc3+ 7 bxc3} (12... Nc7 13. f3 Re8 14. Ng3 Ne6 15. Bb2 Qd7 16. Rad1 Rad8 17. Rfe1 h5 18. e4 dxe4 19. fxe4 h4 20. Nf5 cxd4 21. cxd4 Nc5 {½-½ (35) Vedmediuc,S (2433)-Soltanici,R (2400) Kishinev 2016}) 13. Qc2 {[%emt 0:03:30]} b5 {[%emt 0:01:30]} 14. Ng3 {[%emt 0:00:30]} Re8 {[%emt 0:01:30]} 15. f3 {[%emt 0:01:30]} Nc7 $146 {[%emt 0:10:30]} ({Predecessor:} 15... h5 16. Bd2 h4 17. Nh1 Qe7 18. Nf2 Nc7 19. Rfe1 a5 20. e4 {0-1 (37) Selnes,H (1921)-Cheng,B (2103) Gold Coast 2009}) 16. e4 {[%emt 0:04:30]} a5 {[%emt 0:05:30]} 17. e5 {[%emt 0:00:30]} Nd7 {[%emt 0:00:30]} 18. f4 {[%emt 0:02:30]} f6 {[%emt 0:03:30]} 19. Rf3 {[%emt 0:05:30]} g6 {[%emt 0:15:30]} 20. f5 {[%emt 0:16:30]} fxe5 {[%emt 0:00:30]} 21. fxg6 {[%emt 0:00:00]} e4 {[%emt 0:00:30]} 22. gxh7+ {[%emt 0:00:00]} Kh8 {[%emt 0:00:00]} 23. Rf7 {[%emt 0:01:30]} Rf8 {[%emt 0:00:00]} 24. Qf2 {[%emt 0:00:30]} Qe8 {[%emt 0:00:30]} 25. Rxf8+ {[%emt 0:05:30]} Qxf8 {[%emt 0:00:30]} 26. Qe2 {[%emt 0:00:30]} Qf7 $18 {[%emt 0:12:30]} 27. Be3 {[%emt 0:10:30]} Qg6 {[%emt 0:03:30]} 28. Nh5 {[%emt 0:02:30]} Ne6 {[%emt 0:02:30]} 29. Rb1 {[%emt 0:07:30]} Rb8 {[%emt 0:00:30]} 30. Nf4 {[%emt 0:01:30]} Nxf4 {[%emt 0:00:30]} 31. Bxf4 {[%emt 0:00:00]} Rb7 {[%emt 0:01:30]} 32. Qd2 {[%emt 0:00:00]} Kxh7 {[%emt 0:00:30]} 33. h3 {[%emt 0:02:30]} Nf6 {[%emt 0:00:30]} 34. a4 {[%emt 0:00:30]} b4 {[%emt 0:01:30]} 35. cxb4 {[%emt 0:03:30]} e3 {[%emt 0:01:30]} 36. Qe1 {[%emt 0:02:12]} e2 {[%emt 0:07:30]} 37. b5 {[%emt 0:05:53]} Nh5 {[%emt 0:02:30]} 38. Be5 {[%emt 0:01:31]} Rf7 {[%emt 0:00:30]} 39. g4 {[%emt 0:04:45]} Rf1+ {[%emt 0:04:30]} 40. Qxf1 {[%emt 0:00:12]} exf1=Q+ {[%emt 0:00:30]} 41. Rxf1 {[%emt 0:00:02]} c3 {[%emt 0:01:30]} 42. Rf8 {[%emt 0:05:10]} Qb1+ {[%emt 0:03:53]} 43. Kg2 {[%emt 0:00:48]} Qc2+ {[%emt 0:02:09]} 44. Kg1 {[%emt 0:01:31]} Qd1+ {[%emt 0:01:02]} 45. Rf1 {[%emt 0:00:14]} c2 {[%emt 0:00:22]} 0-1